bitfinex/quotes_ETHUSD_20251120
["timestamp","ask_amount","ask_price","bid_price","bid_amount"]
[1763602954256,5.86747216,3040.0,3039.9,0.001]
[1763602954456,4.91007216,3040.0,3039.9,0.4943]
[1763602954778,4.60197032,3040.0,3039.9,0.5943]
[1763602955089,6.34850417,3040.0,3039.9,0.101]
[1763602955680,5.85950417,3040.0,3039.9,0.101]
[1763602956883,5.39110417,3040.0,3039.9,0.101]
[1763602958109,5.88160417,3040.0,3039.9,0.101]
[1763602959209,5.39110417,3040.0,3039.9,0.5851]
[1763602959509,4.19646632,3040.0,3039.9,0.5851]
[1763602960067,4.68696632,3040.0,3039.9,0.101]
[1763602960366,4.19646632,3040.0,3039.9,0.101]
[1763602960918,4.19646632,3040.0,3039.9,0.001]
[1763602960919,3.28947368,3040.0,3039.9,0.001]
[1763602961073,3.77287368,3040.0,3039.9,0.101]
[1763602962115,4.86573772,3040.3,3039.9,0.5851]
[1763602962116,3.28925728,3040.2,3039.9,0.5851]
[1763602962413,3.28925728,3040.2,3040.1,0.1]
[1763602962781,3.77265728,3040.2,3040.1,0.1]
[1763602963601,3.28925728,3040.2,3040.1,0.5841]
[1763602963802,0.002,3040.3,3040.2,0.1]
[1763602963979,3.29114909,3040.3,3040.2,0.5841]
[1763602964579,3.77454909,3040.3,3040.2,0.1]
[1763602964981,0.002,3040.3,3040.2,0.5841]
[1763602965318,0.002,3040.3,3040.2,1.0583]
[1763602965522,0.002,3040.3,3040.2,0.5841]
[1763602966116,0.002,3040.3,3040.2,1.0583]
[1763602966297,3.29114909,3040.3,3040.2,1.0583]
[1763602966626,3.29114909,3040.3,3040.2,0.5841]
[1763602966809,0.002,3040.3,3040.2,0.4841]
[1763602967010,0.002,3040.3,3040.2,1.0583]
[1763602967212,0.002,3040.3,3040.2,0.5841]
[1763602968394,0.4925,3040.3,3040.2,0.1]
[1763602968818,0.002,3040.3,3040.2,0.1]
[1763602969030,0.002,3040.3,3040.2,0.5841]
[1763602969427,0.4706,3040.3,3040.2,0.1]
[1763602969729,2.98676482,3040.3,3040.0,0.1]
[1763602969906,0.410504,3040.2,3040.0,0.1]
[1763602970093,0.869404,3040.1,3040.0,0.1]
[1763602970524,2.01936482,3040.3,3040.2,0.1]
[1763602970727,0.90899264,3040.3,3040.2,0.5841]
[1763602971036,0.90899264,3040.3,3040.2,0.1]
[1763602971037,4.66674173,3040.3,3040.2,0.1]
[1763602972415,8.36139482,3040.3,3039.9,0.001]
[1763602972614,8.36139482,3040.3,3040.1,0.1]
[1763602972813,0.5038,3040.2,3040.1,0.1]
[1763602973930,0.405504,3040.1,3040.0,0.1]
[1763602974309,0.869104,3040.1,3040.0,0.1]
[1763602975214,4.65756948,3040.1,3040.0,0.1]
[1763602976346,4.15846948,3040.1,3040.0,0.1]
[1763602977952,4.65756948,3040.1,3040.0,0.1]
[1763602978353,7.36438191,3040.1,3040.0,0.1]
[1763602978952,4.19635812,3040.1,3040.0,0.5841]
[1763602979248,4.66495812,3040.1,3040.0,0.1]
[1763602979455,0.405504,3040.0,3039.9,0.101]
[1763602979820,0.405504,3040.0,3039.9,0.5851]
[1763602980021,3.0690194,3040.0,3039.9,0.001]
[1763602980323,3.37720278,3040.0,3039.9,0.001]
[1763602981336,3.37720278,3040.0,3039.5,0.001]
[1763602981337,1.31249664,3039.8,3039.5,0.001]
[1763602981533,6.46143337,3039.6,3039.5,0.001]
[1763602981737,6.46143337,3039.6,3038.2,0.111]
[1763602981738,0.405504,3039.2,3038.2,0.111]
[1763602981972,0.405504,3038.3,3038.2,0.1]
[1763602982144,0.4905,3038.3,3038.2,0.1]
[1763602982346,0.896004,3038.3,3038.2,0.1]
[1763602982668,0.405504,3038.3,3038.2,0.5841]
[1763602983044,0.111,3039.0,3038.6,0.1]
[1763602983371,0.405504,3038.9,3038.6,0.1]
[1763602983681,1.31249664,3038.7,3038.6,0.1]
[1763602983880,2.5573001,3038.7,3038.6,0.1]
[1763602984452,3.0560001,3038.7,3038.6,0.1]
[1763602985574,6.34688106,3038.7,3038.6,0.1]
[1763602985773,5.84818106,3038.7,3038.6,0.1]
[1763602987561,4.6033776,3038.7,3038.6,0.5841]
[1763602988878,5.0587776,3038.7,3038.6,0.1]
[1763602989044,5.5303776,3038.7,3038.5,0.001]
[1763602989244,0.437304,3038.6,3038.5,0.001]
[1763602989465,4.84997579,3038.6,3038.5,0.001]
[1763602990877,3.69649327,3038.6,3038.5,0.4865]
[1763602991077,3.69649327,3038.6,3038.5,0.5865]
[1763602991382,3.69649327,3038.6,3038.5,1.064]
[1763602991546,3.69649327,3038.6,3038.5,0.5865]
[1763602992992,4.1978736,3038.7,3038.5,1.064]
[1763602992993,3.29091293,3038.7,3038.5,1.064]
[1763602993146,4.60340957,3038.7,3038.6,0.5855]
[1763602993483,3.29091293,3038.7,3038.6,1.063]
[1763602993891,3.29091293,3038.7,3038.6,0.1]
[1763602994047,3.29091293,3038.7,3038.6,1.063]
[1763602994541,3.29091293,3038.7,3038.6,0.5855]
[1763602994747,3.2905561,3039.0,3038.9,0.1]
[1763602995142,4.19754874,3039.0,3038.9,0.1]
[1763602995991,4.19754874,3039.0,3038.9,0.5855]
[1763602996292,7.45648422,3039.8,3039.5,0.1]
[1763602996583,1.057,3039.6,3039.5,0.1]
[1763602996762,0.877004,3039.6,3039.5,0.1]
[1763602997694,5.0739032,3039.6,3039.5,0.1]
[1763602997909,3.28990656,3039.6,3039.5,0.5855]
[1763602999391,3.28990656,3039.6,3039.5,0.1]
[1763602999687,7.89166042,3039.9,3039.5,0.4855]
[1763602999874,5.07367853,3039.9,3039.8,0.1]
[1763603000248,4.60207853,3039.9,3039.8,0.1]
[1763603000475,4.62777853,3039.9,3039.8,0.1]
[1763603001583,4.60207853,3039.9,3039.8,0.1]
[1763603001884,4.60207853,3039.9,3039.8,1.063]
[1763603001885,3.28958189,3039.9,3039.8,1.063]
[1763603004689,4.19824992,3040.2,3040.1,0.1]
[1763603004865,4.19824992,3040.2,3040.1,0.7161]
[1763603005389,4.19824992,3040.2,3040.1,1.1936]
[1763603006864,4.19824992,3040.2,3040.1,0.7161]
[1763603007075,4.19824992,3040.2,3040.1,0.5855]
[1763603014491,0.002,3040.2,3040.1,1.1917]
[1763603015098,0.002,3040.2,3040.1,4.48106548]
[1763603016290,0.002,3040.3,3040.2,0.1]
[1763603016591,0.002,3040.3,3040.2,1.0533]
[1763603017285,0.002,3040.3,3040.2,4.34255728]
[1763603017696,0.002,3040.6,3040.5,0.1]
[1763603018002,0.002,3040.7,3040.5,0.1]
[1763603018003,0.002,3040.7,3040.6,0.1]
[1763603018169,0.002,3040.9,3040.8,0.1]
[1763603018369,0.002,3040.9,3040.8,0.56]
[1763603018601,0.002,3040.9,3040.8,1.0157]
[1763603019261,0.002,3041.2,3040.9,3.38850011]
[1763603019465,0.002,3041.2,3040.9,4.41520011]
[1763603019666,0.002,3041.2,3040.9,5.32219275]
[1763603019874,0.002,3041.9,3041.2,0.1]
[1763603020095,0.002,3041.9,3041.8,0.1]
[1763603020267,0.002,3041.9,3041.8,0.671]
[1763603020466,0.002,3041.9,3041.8,1.1267]
[1763603021301,0.002,3041.9,3041.8,5.32121976]
[1763603021901,0.002,3041.9,3041.8,5.37121976]
[1763603022102,0.002,3042.1,3042.0,0.1]
[1763603022294,0.002,3042.1,3042.0,1.0157]
[1763603023417,0.002,3042.1,3042.0,5.21000361]
[1763603023785,0.002,3042.6,3042.4,0.46]
[1763603023973,3.28516381,3044.0,3043.9,0.1]
[1763603024314,3.28516381,3044.0,3043.9,0.211]
[1763603024315,4.53382984,3044.0,3043.9,0.211]
[1763603024525,4.99382984,3044.0,3043.9,0.211]
[1763603024873,5.45782984,3044.0,3043.9,0.211]
[1763603025382,5.11615645,3044.0,3043.9,0.211]
[1763603029304,5.52166045,3044.0,3043.9,0.1]
[1763603029485,5.52166045,3044.0,3043.9,0.211]
[1763603030275,5.52166045,3044.0,3043.9,0.1]
[1763603030476,0.405504,3043.9,3043.7,0.211]
[1763603030719,0.926904,3043.9,3042.8,0.1849]
[1763603031010,0.926904,3043.9,3043.7,0.1]
[1763603031325,2.15935894,3043.8,3043.7,0.211]
[1763603031623,2.61935894,3043.8,3043.7,0.211]
[1763603031823,2.61935894,3043.8,3043.4,0.211]
[1763603031824,0.405504,3043.7,3043.4,0.211]
[1763603031991,0.405504,3043.5,3043.4,0.1]
[1763603032322,0.596104,3043.5,3043.4,0.1]
[1763603032482,4.34579481,3043.5,3043.4,0.1]
[1763603032815,4.34579481,3043.5,3043.3,0.111]
[1763603032816,3.47629081,3043.5,3043.3,0.111]
[1763603033004,3.74969081,3043.5,3043.4,0.1]
[1763603033518,4.20969081,3043.5,3043.4,0.1]
[1763603034595,4.20969081,3043.5,3043.4,0.211]
[1763603035627,5.39091584,3043.5,3043.4,0.111]
[1763603036991,5.39091584,3043.5,3043.4,0.211]
[1763603037287,4.15119481,3043.5,3043.4,0.211]
[1763603038012,1.28985494,3043.8,3043.4,0.571]
[1763603038218,5.06186361,3043.8,3043.7,0.1]
[1763603038738,4.19235961,3043.8,3043.7,0.1]
[1763603039031,4.19235961,3043.8,3043.7,0.56]
[1763603039724,4.19235961,3043.8,3043.7,0.1]
[1763603039725,4.65235961,3043.8,3043.7,0.1]
[1763603040424,4.65235961,3043.8,3043.6,0.1]
[1763603040425,8.40172658,3043.8,3043.6,0.1]
[1763603040630,1.66900615,3043.7,3043.6,0.211]
[1763603040837,2.12900615,3043.7,3043.6,0.211]
[1763603041196,2.12900615,3043.7,3043.6,0.1]
[1763603041428,2.12900615,3043.7,3043.5,0.1]
[1763603041635,5.11576013,3043.6,3043.5,0.1]
[1763603041927,5.30636013,3043.6,3043.5,0.1]
[1763603042131,1.31249664,3043.5,3042.5,0.001]
[1763603042297,0.405504,3043.3,3043.1,0.1]
[1763603042632,0.405504,3043.3,3042.6,0.111]
[1763603042633,0.65937053,3043.3,3043.2,0.1]
[1763603042834,1.42431364,3043.3,3043.2,0.1]
[1763603043132,11.28142185,3043.6,3043.2,0.46]
[1763603043133,6.57116572,3043.6,3043.2,0.46]
[1763603043317,0.30528305,3043.5,3043.3,0.111]
[1763603043516,3.28546826,3043.8,3043.5,0.1]
[1763603043517,4.59786361,3043.8,3043.5,0.1]
[1763603043828,1.2122743,3043.7,3043.5,0.211]
[1763603044009,0.76528166,3043.6,3043.5,0.211]
[1763603044203,0.30528166,3043.6,3043.5,0.211]
[1763603044536,0.30528166,3043.6,3043.5,0.671]
[1763603044730,3.28536697,3043.8,3043.5,0.571]
[1763603044896,3.28536697,3043.8,3043.7,0.1]
[1763603045091,3.99658475,3043.8,3043.7,0.1]
[1763603045298,5.1544078,3043.8,3043.7,0.211]
[1763603046111,0.30571378,3043.8,3043.7,1.0267]
[1763603046311,0.30571378,3043.8,3043.7,0.671]
[1763603046632,0.30571378,3043.8,3043.7,1.1267]
[1763603046942,0.002,3044.0,3043.9,0.1]
[1763603047130,0.30834218,3044.0,3043.9,0.1]
[1763603047432,7.3387397,3044.0,3043.1,3.28609412]
[1763603047642,3.75119876,3044.0,3043.9,0.1]
[1763603047934,4.46345876,3044.0,3043.9,0.211]
[1763603048123,4.94425876,3044.0,3043.9,0.211]
[1763603048733,5.73260363,3044.0,3043.9,0.211]
[1763603049334,4.48025876,3044.0,3043.9,0.211]
[1763603050524,4.97115876,3044.0,3043.9,0.211]
[1763603050741,0.405504,3043.9,3043.6,0.1]
[1763603051024,0.306756,3043.8,3043.4,0.111]
[1763603051226,1.42133401,3043.7,3042.5,0.001]
[1763603051441,1.42133401,3043.7,3042.7,0.1]
[1763603051442,1.28013638,3043.5,3042.7,0.1]
[1763603051631,5.61412542,3043.4,3043.3,0.1]
[1763603051825,7.61559616,3043.4,3043.3,0.1]
[1763603053268,6.58582542,3043.4,3043.3,0.1]
[1763603055368,1.31249664,3043.3,3042.5,0.001]
[1763603055544,1.01583001,3043.2,3042.6,0.1]
[1763603055750,10.26419607,3043.0,3042.6,0.1]
[1763603055963,0.405504,3042.6,3042.5,0.001]
[1763603056270,0.73096,3042.6,3042.5,0.101]
[1763603056649,0.71226,3042.6,3042.5,0.101]
[1763603057736,3.99892272,3042.6,3042.5,0.101]
[1763603058336,3.69216672,3042.6,3042.5,0.101]
[1763603058881,5.6691957,3042.6,3042.5,0.001]
[1763603059784,5.6691957,3042.6,3042.5,0.101]
[1763603059965,4.48042354,3042.6,3042.5,0.101]
[1763603060578,4.97132354,3042.6,3042.5,0.101]
[1763603060964,4.97132354,3042.6,3042.5,0.001]
[1763603061158,4.17296672,3042.6,3042.5,0.001]
[1763603061359,11.31464577,3043.6,3042.5,0.001]
[1763603061360,3.28590674,3043.3,3042.5,0.9214]
[1763603061672,0.405504,3043.1,3043.0,0.1]
[1763603061874,4.1724267,3043.1,3043.0,0.1]
[1763603062268,4.19303489,3043.2,3043.0,0.5529]
[1763603062473,4.19303489,3043.2,3043.1,0.1]
[1763603062986,4.67383489,3043.2,3043.1,0.1]
[1763603064000,4.19303489,3043.2,3043.1,0.4529]
[1763603064202,4.19303489,3043.2,3043.1,0.5529]
[1763603064700,3.28604225,3043.2,3043.1,0.5529]
[1763603065703,3.28604225,3043.2,3043.1,0.211]
[1763603066203,1.39789264,3043.5,3043.1,0.111]
[1763603066204,6.97710154,3043.4,3043.1,0.111]
[1763603066497,4.59829541,3043.4,3043.3,0.1]
[1763603066883,5.07909541,3043.4,3043.3,0.1]
[1763603069697,5.54239541,3043.4,3043.3,0.1]
[1763603069995,5.54239541,3043.4,3043.3,0.211]
[1763603071160,5.07909541,3043.4,3043.3,0.211]
[1763603071575,4.59829541,3043.4,3043.3,0.6805]
[1763603072595,0.002,3043.6,3043.5,0.1]
[1763603072964,0.002,3043.6,3043.5,0.5695]
[1763603073377,0.002,3043.6,3043.5,1.0203]
[1763603080326,0.002,3043.6,3043.5,0.6805]
[1763603081727,0.002,3043.6,3043.5,0.5695]
[1763603081888,0.4922,3043.6,3043.5,0.211]
[1763603082108,0.002,3043.6,3043.5,0.6883]
[1763603083738,0.002,3043.6,3043.5,0.211]
[1763603084347,0.002,3043.6,3043.5,0.6883]
[1763603084913,0.002,3043.6,3043.5,1.185]
[1763603085450,0.002,3043.6,3043.5,4.47069081]
[1763603089027,0.002,3043.6,3043.5,1.185]
[1763603090256,0.002,3043.6,3043.5,0.5773]
[1763603090557,0.4922,3043.6,3043.5,0.211]
[1763603090759,0.002,3043.6,3043.5,0.211]
[1763603091065,0.002,3043.6,3043.5,0.6883]
[1763603091947,0.4922,3043.6,3043.5,0.1]
[1763603092257,0.9694,3043.6,3043.5,0.211]
[1763603092460,0.9694,3043.6,3043.5,0.1]
[1763603092645,0.405504,3043.5,3043.4,0.1]
[1763603092850,0.882704,3043.5,3043.4,0.211]
[1763603093164,0.897104,3043.5,3043.4,0.211]
[1763603094144,4.18279481,3043.5,3043.4,0.211]
[1763603094348,4.74521777,3043.5,3043.4,0.211]
[1763603100258,0.405504,3043.3,3042.5,0.001]
[1763603100451,0.7132272,3043.3,3042.5,0.001]
[1763603100692,0.60881942,3043.2,3042.8,0.1]
[1763603100865,1.092004,3042.6,3042.5,0.101]
[1763603101391,1.569204,3042.6,3042.5,0.001]
[1763603101952,5.76285936,3042.6,3042.5,0.001]
[1763603102157,6.66780072,3042.6,3042.5,0.101]
[1763603103894,6.66780072,3042.6,3042.5,0.001]
[1763603106008,0.56242296,3043.5,3043.0,0.1]
[1763603106212,5.23230641,3043.5,3043.4,0.1]
[1763603106655,6.12801041,3043.5,3043.4,0.1]
[1763603106862,5.72250641,3043.5,3043.4,0.1]
[1763603107996,12.29388803,3043.5,3043.1,0.1]
[1763603108163,1.86151728,3043.4,3043.1,0.1]
[1763603108373,0.405504,3043.1,3042.7,0.111]
[1763603108778,0.885104,3043.1,3042.9,0.1]
[1763603109007,0.405504,3043.1,3043.0,0.4504]
[1763603109276,0.405504,3043.1,3043.0,0.5504]
[1763603109796,0.002,3043.1,3043.0,0.5504]
[1763603110008,0.002,3043.1,3043.0,1.0081]
[1763603110208,0.002,3043.1,3043.0,0.5504]
[1763603110413,3.2881227,3043.1,3043.0,0.5504]
[1763603112911,3.2881227,3043.1,3043.0,0.1]
[1763603112912,3.7569227,3043.1,3043.0,0.1]
[1763603113111,4.6420267,3043.1,3043.0,0.111]
[1763603113811,4.6420267,3043.1,3043.0,0.211]
[1763603113812,3.6936267,3043.1,3043.0,0.211]
[1763603113980,3.2881227,3043.1,3043.0,1.1191]
[1763603114503,3.2881227,3043.1,3043.0,0.6614]
[1763603115410,0.002,3043.1,3043.0,0.6614]
[1763603115811,0.002,3043.1,3043.0,0.211]
[1763603117283,0.4708,3043.1,3043.0,0.211]
[1763603117596,3.7569227,3043.1,3043.0,0.211]
[1763603119817,4.2365227,3043.1,3043.0,0.211]
[1763603119994,3.7569227,3043.1,3043.0,0.1]
[1763603120195,3.7569227,3043.1,3043.0,0.211]
[1763603120597,3.2881227,3043.1,3043.0,0.6614]
[1763603121207,3.2881227,3043.1,3043.0,1.1191]
[1763603121919,3.2881227,3043.1,3043.0,0.6614]
[1763603123225,5.02518647,3043.1,3043.0,0.111]
[1763603123730,4.2365227,3043.1,3043.0,0.211]
[1763603125006,4.6420267,3043.1,3043.0,0.211]
[1763603125609,3.6936267,3043.1,3043.0,0.6614]
[1763603125804,3.2881227,3043.1,3043.0,0.6614]
[1763603127026,0.002,3043.1,3043.0,1.1191]
[1763603127738,0.002,3043.1,3043.0,0.5504]
[1763603127892,0.002,3043.1,3043.0,0.6614]
[1763603129526,0.002,3043.1,3043.0,1.07980126]
[1763603129730,0.002,3043.1,3043.0,0.65230126]
[1763603131835,0.002,3043.1,3043.0,1.14980126]
[1763603132903,0.002,3043.1,3043.0,6.98967934]
[1763603133104,0.002,3043.1,3043.0,6.49217934]
[1763603133724,0.002,3043.1,3043.0,0.65230126]
[1763603134426,0.002,3043.1,3043.0,6.98967934]
[1763603134829,0.002,3043.1,3043.0,10.27591003]
[1763603135034,0.002,3043.1,3043.0,4.43603195]
[1763603136745,0.002,3043.1,3043.0,4.32503195]
[1763603137035,0.002,3043.1,3043.0,10.27591003]
[1763603137841,3.28744275,3043.8,3043.0,10.27591003]
[1763603137842,0.002,3043.8,3043.5,0.4671]
[1763603138051,0.002,3044.3,3043.7,7.21397072]
[1763603138213,0.002,3044.3,3043.9,6.39787934]
[1763603138550,0.1872,3045.9,3043.9,6.39787934]
[1763603138551,6.5664973,3045.8,3045.5,0.09090126]
[1763603138704,2.05896237,3045.7,3045.6,0.111]
[1763603138908,2.46446637,3045.7,3045.6,0.111]
[1763603139102,2.46446637,3045.7,3045.4,0.111]
[1763603139103,2.51206237,3045.7,3045.4,0.111]
[1763603139367,0.405504,3045.5,3045.4,0.111]
[1763603139542,0.854604,3045.5,3045.4,0.111]
[1763603139721,1.62256064,3045.5,3045.4,0.111]
[1763603139921,4.90609372,3045.5,3045.4,0.111]
[1763603140116,3.28342526,3045.6,3045.5,0.09090126]
[1763603140328,5.0490219,3045.6,3045.5,0.09090126]
[1763603140515,4.6435179,3045.6,3045.5,0.09090126]
[1763603140715,4.6435179,3045.6,3045.5,0.05797126]
[1763603140916,4.1904179,3045.6,3045.5,0.09797126]
[1763603141252,1.31249664,3045.6,3045.5,0.4671]
[1763603141410,0.90699264,3045.6,3045.5,1.05697126]
[1763603141612,3.28311561,3045.9,3045.8,0.09797126]
[1763603141829,5.02865883,3045.9,3045.8,0.09797126]
[1763603142032,5.48175883,3045.9,3045.8,0.09797126]
[1763603142226,6.38875147,3045.9,3045.8,0.09797126]
[1763603143810,5.91215147,3045.9,3045.8,0.09797126]
[1763603144043,5.72495147,3045.9,3045.8,0.09797126]
[1763603144252,5.72695147,3045.9,3045.8,0.09797126]
[1763603144456,0.002,3045.9,3045.8,1.05697126]
[1763603144608,4.28170187,3045.9,3045.6,0.09797126]
[1763603144812,1.31249664,3045.8,3045.6,0.09797126]
[1763603145032,0.4531,3045.7,3045.6,0.09797126]
[1763603145241,0.9297,3045.7,3045.6,0.09797126]
[1763603146343,3.73641746,3045.7,3045.6,0.09797126]
[1763603146845,4.21301746,3045.7,3045.6,0.09797126]
[1763603147033,4.21301746,3045.7,3045.3,0.111]
[1763603147034,7.49633492,3045.7,3045.4,0.09797126]
[1763603147233,0.4531,3045.5,3045.4,0.09797126]
[1763603147866,0.9297,3045.5,3045.4,0.09797126]
[1763603148364,4.21323308,3045.5,3045.4,0.09797126]
[1763603148563,3.73663308,3045.5,3045.4,0.09797126]
[1763603149264,4.97892279,3045.5,3045.3,0.20897126]
[1763603149562,0.186,3045.4,3045.3,0.20897126]
[1763603150446,3.4696409,3045.4,3045.3,0.20897126]
[1763603151046,3.9462409,3045.4,3045.3,0.20897126]
[1763603151753,3.8751449,3045.4,3045.3,0.20897126]
[1763603152265,3.8751449,3045.4,3044.4,11.77311083]
[1763603152266,1.31249664,3045.3,3044.3,0.4919]
[1763603152468,1.31249664,3045.2,3045.1,0.09797126]
[1763603152673,1.31249664,3045.4,3045.3,0.09797126]
[1763603152833,1.76559664,3045.4,3045.3,0.09797126]
[1763603153548,1.31249664,3045.4,3045.3,0.56507126]
[1763603153748,1.31249664,3045.4,3045.0,0.111]
[1763603153954,1.31249664,3045.4,3045.3,0.09797126]
[1763603154144,1.71499239,3045.4,3045.3,0.09797126]
[1763603154344,2.16809239,3045.4,3045.3,0.09797126]
[1763603154664,5.45173329,3045.4,3045.3,0.09797126]
[1763603154866,4.1422449,3045.4,3045.3,0.09797126]
[1763603155279,4.6188449,3045.4,3045.3,0.09797126]
[1763603156044,0.405504,3045.2,3045.1,0.20897126]
[1763603156251,2.10846633,3045.2,3044.8,0.09797126]
[1763603156569,1.65536633,3045.2,3045.1,0.09797126]
[1763603156871,3.68936056,3045.2,3045.1,0.56507126]
[1763603157231,3.28385656,3045.2,3045.1,0.56507126]
[1763603158744,6.56749818,3045.3,3045.1,0.4671]
[1763603158971,4.59624573,3045.3,3045.2,0.56507126]
[1763603159166,4.19074173,3045.3,3045.2,0.56507126]
[1763603160136,4.19074173,3045.3,3044.8,0.111]
[1763603160137,8.40419082,3045.3,3044.8,0.111]
[1763603160379,5.48426081,3045.3,3045.1,0.09797126]
[1763603160536,5.04934573,3045.3,3045.2,0.09797126]
[1763603160742,4.64384173,3045.3,3045.2,0.09797126]
[1763603161673,4.19074173,3045.3,3045.2,0.09797126]
[1763603161878,4.19074173,3045.3,3045.2,0.56507126]
[1763603162653,3.2836946,3045.4,3045.2,0.4671]
[1763603162978,4.59619124,3045.4,3045.3,0.56507126]
[1763603163958,4.59619124,3045.4,3045.3,0.09797126]
[1763603165368,1.31249664,3045.4,3045.3,0.56507126]
[1763603165556,0.002,3045.5,3045.4,0.09797126]
[1763603165882,0.002,3045.5,3045.4,0.67607126]
[1763603166076,0.002,3045.5,3045.4,1.16797126]
[1763603166268,0.002,3045.5,3045.4,0.5781]
[1763603166468,0.002,3045.5,3045.4,1.16797126]
[1763603167278,0.002,3045.5,3045.4,4.45161216]
[1763603169662,0.002,3045.5,3045.4,10.28350864]
[1763603172394,0.002,3045.9,3045.5,0.90699264]
[1763603172564,0.002,3046.3,3046.2,0.09797126]
[1763603172763,0.002,3046.3,3046.2,7.09353502]
[1763603174384,0.002,3046.3,3046.2,10.37631356]
[1763603175193,0.002,3046.3,3046.2,6.98253502]
[1763603175492,0.002,3046.3,3046.2,6.48873502]
[1763603176203,0.002,3046.3,3046.2,6.98063502]
[1763603176577,0.002,3046.3,3046.2,6.48873502]
[1763603176878,0.002,3046.3,3046.2,6.98063502]
[1763603177667,0.002,3046.3,3046.2,6.48873502]
[1763603179015,0.002,3046.3,3046.2,6.98063502]
[1763603179171,0.4977,3046.3,3046.2,6.03393502]
[1763603179374,0.002,3046.3,3046.2,6.03393502]
[1763603179677,0.002,3046.3,3046.2,6.48873502]
[1763603179887,0.002,3046.3,3046.2,6.98063502]
[1763603181783,0.002,3046.3,3046.2,0.55277126]
[1763603181989,0.002,3046.3,3046.2,0.66377126]
[1763603182366,1.398304,3046.3,3046.2,0.09797126]
[1763603183273,4.68097478,3046.3,3046.2,0.09797126]
[1763603184026,0.405504,3046.2,3045.7,0.09797126]
[1763603184308,0.0206,3045.6,3045.3,0.001]
[1763603184495,0.4952,3045.4,3045.3,0.09897126]
[1763603184695,0.9903,3045.4,3045.3,0.09897126]
[1763603184893,0.4952,3045.4,3045.3,0.112]
[1763603185099,0.4952,3045.4,3045.3,0.20997126]
[1763603185272,3.7788409,3045.4,3045.3,0.20997126]
[1763603185469,4.2739409,3045.4,3045.3,0.20997126]
[1763603186609,3.7788409,3045.4,3045.3,0.20997126]
[1763603186810,4.2500409,3045.4,3045.3,0.112]
[1763603187017,4.2500409,3045.4,3045.3,0.09897126]
[1763603187018,5.40890179,3045.4,3045.3,0.09897126]
[1763603188801,6.31589443,3045.4,3045.3,0.001]
[1763603190801,6.31589443,3045.4,3045.3,0.09897126]
[1763603191028,6.31589443,3045.4,3045.3,0.001]
[1763603192287,1.31249664,3045.3,3044.9,0.001]
[1763603192517,1.88575753,3045.2,3044.9,0.001]
[1763603194399,6.07660673,3045.2,3044.9,0.001]
[1763603197842,12.51660673,3045.2,3044.9,0.001]
[1763603200233,12.51660673,3045.2,3045.0,0.001]
[1763603202338,12.62760673,3045.2,3045.0,0.001]
[1763603203638,11.63990273,3045.2,3045.0,0.001]
[1763603203837,5.19990273,3045.2,3045.0,0.09897126]
[1763603204003,3.33295656,3045.2,3045.0,0.09897126]
[1763603204203,3.28385656,3045.2,3045.1,0.56127126]
[1763603204514,0.90899264,3045.3,3045.2,0.09797126]
[1763603204716,0.002,3045.3,3045.2,0.09797126]
[1763603205027,0.407504,3045.3,3045.2,0.09797126]
[1763603205539,0.002,3045.3,3045.2,0.09797126]
[1763603206340,3.69125272,3045.3,3045.2,0.09797126]
[1763603206550,0.405504,3045.2,3045.1,0.001]
[1763603206755,0.473904,3045.2,3045.1,0.001]
[1763603206952,0.473904,3045.2,3045.1,0.09897126]
[1763603207748,1.67206835,3045.2,3045.1,0.001]
[1763603207950,2.15196835,3045.2,3045.1,0.001]
[1763603208150,1.67206835,3045.2,3045.1,0.09897126]
[1763603208948,3.68936056,3045.2,3045.1,0.56127126]
[1763603210237,4.15626056,3045.2,3045.1,0.001]
[1763603210564,4.63616056,3045.2,3045.1,0.001]
[1763603210710,12.58946616,3045.2,3045.1,0.001]
[1763603211527,6.27450775,3045.2,3045.1,0.001]
[1763603211710,4.15626056,3045.2,3045.1,0.001]
[1763603211915,3.68936056,3045.2,3045.1,0.09897126]
[1763603212110,4.5963532,3045.2,3045.1,0.09897126]
[1763603213452,4.5963532,3045.2,3045.1,0.56127126]
[1763603213755,4.5963532,3045.2,3045.1,0.60327126]
[1763603213915,4.5963532,3045.2,3045.1,0.56127126]
[1763603214254,4.5963532,3045.2,3045.1,0.61877126]
[1763603214418,4.5963532,3045.2,3045.1,0.56127126]
[1763603214612,4.5963532,3045.2,3045.1,0.09897126]
[1763603215231,4.5963532,3045.2,3045.1,0.56127126]
[1763603215753,5.0632532,3045.2,3045.1,0.001]
[1763603215955,5.89815339,3045.2,3045.1,0.001]
[1763603216159,6.37805339,3045.2,3045.1,0.001]
[1763603216545,5.89815339,3045.2,3045.1,0.001]
[1763603217929,6.37805339,3045.2,3045.1,0.001]
[1763603218729,5.89815339,3045.2,3045.1,0.09897126]
[1763603221470,5.0632532,3045.2,3045.1,0.09897126]
[1763603221669,4.5963532,3045.2,3045.1,0.56127126]
[1763603222715,3.28385656,3045.2,3045.1,1.08377126]
[1763603223205,3.28385656,3045.2,3045.1,0.56127126]
[1763603223858,3.28385656,3045.2,3045.1,0.61877126]
[1763603224058,3.28385656,3045.2,3045.1,1.08377126]
[1763603224498,3.28576782,3045.3,3045.2,0.09797126]
[1763603224677,3.28576782,3045.3,3045.2,0.56027126]
[1763603224678,3.69127182,3045.3,3045.2,0.56027126]
[1763603226373,3.69127182,3045.3,3045.1,0.001]
[1763603226374,1.31249664,3045.2,3045.1,0.001]